[Event "1000GM Spring GM-A 2024"]
[Site "New York"]
[Date "2024.03.30"]
[Round "6.1"]
[White "Shlyakhtenko, Robert"]
[Black "Sethuraman, Sandeep"]
[Result "1-0"]
[ECO "D45"]
[WhiteElo "2384"]
[BlackElo "2381"]
[Annotator "ChessBase"]
[PlyCount "161"]
[EventDate "2024.03.26"]
[EventType "tourn"]
[EventCountry "USA"]
[SourceTitle "playchess.com"]
[Source "ChessBase"]
[SourceQuality "1"]
[TimeControl "5400+30"]

1. d4 {[%emt 0:00:02]} d5 {[%emt 0:01:34]} 2. c4 {[%emt 0:00:13]} e6 {[%emt 0:00:06]} 3. Nc3 {[%emt 0:00:34]} c6 {[%emt 0:00:05]} 4. e3 {[%emt 0:00:27]} Nf6 {[%emt 0:00:10]} 5. Nf3 {[%emt 0:00:08]} a6 {[%emt 0:00:04]} 6. h3 {[%emt 0:00:28]} Nbd7 {[%emt 0:01:17]} 7. Qc2 {[%emt 0:00:13]} Bd6 {[%emt 0:07:16]} 8. g4 {[%emt 0:00:10]} h6 {[%emt 0:02:31]} 9. c5 {[%emt 0:00:23]} Bc7 {[%emt 0:04:57]} 10. Bd2 {[%emt 0:02:00]} e5 {[%emt 0:02:47]} 11. O-O-O {[%emt 0:05:32]} e4 {[%emt 0:05:55]} 12. Nh4 {[%emt 0:01:00]} Nf8 {[%emt 0:08:18]} 13. f3 {[%emt 0:09:09]} g6 {[%emt 0:06:33]} 14. Be2 {[%emt 0:19:31]} Be6 {[%emt 0:05:47]} 15. Rdf1 {[%emt 0:05:47]} Qe7 {[%emt 0:02:06]} 16. f4 {[%emt 0:00:20]} g5 {[%emt 0:06:45]} 17. Ng2 {[%emt 0:07:44]} O-O-O {[%emt 0:04:25]} 18. b4 {[%emt 0:08:31]} Bd7 {[%emt 0:03:56]} 19. f5 {[%emt 0:37:48]} h5 {[%emt 0:05:25]} 20. Kb2 {[%emt 0:00:00]} Be8 {[%emt 0:03:05]} 21. a4 {[%emt 0:00:00]} N8d7 {[%emt 0:02:26]} 22. Rb1 {[%emt 0:00:00]} Nb8 {[%emt 0:00:13]} 23. Ka2 {[%emt 0:00:00]} Bd7 {[%emt 0:00:18]} 24. Qb3 {[%emt 0:00:00]} Rh7 {[%emt 0:02:40]} 25. b5 {[%emt 0:00:00]} axb5 {[%emt 0:00:04]} 26. axb5 {[%emt 0:00:00]} hxg4 {[%emt 0:00:31]} 27. hxg4 {[%emt 0:00:00]} Rdh8 {[%emt 0:00:05]} 28. Rhg1 {[%emt 0:00:00]} Rh2 {[%emt 0:03:19]} 29. bxc6 {[%emt 0:00:00]} Bxc6 {[%emt 0:00:08]} 30. Nb5 {[%emt 0:00:00]} R8h3 {[%emt 0:01:19]} 31. Na7+ {[%emt 0:00:00]} Kd7 {[%emt 0:00:09]} 32. Be1 {[%emt 0:00:00]} Qd8 {[%emt 0:06:40]} 33. Bb5 {[%emt 0:00:00]} Ke8 {[%emt 0:02:31]} 34. Rb2 {[%emt 0:00:27]} Nxg4 {[%emt 0:01:05]} 35. Bf1 {[%emt 0:02:53]} Rh1 {[%emt 0:05:01]} 36. Rxh1 {[%emt 0:00:27]} Rxh1 {[%emt 0:00:02]} 37. Bb5 {[%emt 0:01:01]} Kf8 {[%emt 0:01:41]} 38. Bxc6 {[%emt 0:01:42]} bxc6 {[%emt 0:00:55]} 39. Ba5 {[%emt 0:01:19]} Bxa5 {[%emt 0:00:32]} 40. Qxb8 {[%emt 0:00:01]} Qxb8 {[%emt 0:00:13]} 41. Rxb8+ {[%emt 0:00:01]} Kg7 {[%emt 0:00:01]} 42. Nxc6 {[%emt 0:01:12]} Bd2 {[%emt 0:01:05]} 43. Ne7 {[%emt 0:00:01]} Nxe3 {[%emt 0:02:53]} 44. Nxe3 {[%emt 0:00:50]} Bxe3 {[%emt 0:00:01]} 45. f6+ {[%emt 0:00:00]} Kh7 {[%emt 0:00:30]} 46. c6 {[%emt 0:03:36]} Rc1 {[%emt 0:04:24]} 47. Rf8 {[%emt 0:00:00]} Bxd4 {[%emt 0:00:29]} 48. Rxf7+ {[%emt 0:00:00]} Kh6 {[%emt 0:00:01]} 49. c7 {[%emt 0:00:00]} e3 {[%emt 0:01:15]} 50. c8=Q {[%emt 0:02:00]} Rxc8 {[%emt 0:00:02]} 51. Nxc8 {[%emt 0:00:00]} Kg6 {[%emt 0:00:29]} 52. Rf8 {[%emt 0:00:00]} Bxf6 {[%emt 0:00:49]} 53. Re8 {[%emt 0:00:00]} d4 {[%emt 0:00:13]} 54. Nd6 {[%emt 0:00:19]} g4 {[%emt 0:00:08]} 55. Rg8+ {[%emt 0:00:24]} Kh5 {[%emt 0:01:48]} 56. Ne4 {[%emt 0:00:19]} Be5 {[%emt 0:00:06]} 57. Rg5+ {[%emt 0:00:15]} Kh4 {[%emt 0:00:01]} 58. Rxe5 {[%emt 0:00:01]} d3 {[%emt 0:00:46]} 59. Kb2 {[%emt 0:00:52]} e2 {[%emt 0:01:18]} 60. Nf2 {[%emt 0:00:46]} g3 {[%emt 0:00:04]} 61. Nxd3 {[%emt 0:00:27]} g2 {[%emt 0:00:07]} 62. Ne1 {[%emt 0:00:01]} g1=N {[%emt 0:00:11]} 63. Re3 {[%emt 0:00:45]} Kg4 {[%emt 0:00:23]} 64. Kc3 {[%emt 0:00:16]} Kf4 {[%emt 0:00:02]} 65. Kd3 {[%emt 0:00:20]} Kg4 {[%emt 0:00:02]} 66. Ke4 {[%emt 0:00:19]} Nh3 {[%emt 0:00:09]} 67. Rxe2 {[%emt 0:00:10]} Ng5+ {[%emt 0:00:01]} 68. Ke3 {[%emt 0:00:14]} Kf5 {[%emt 0:00:05]} 69. Nf3 {[%emt 0:00:20]} Nf7 {[%emt 0:00:02]} 70. Rd2 {[%emt 0:00:37]} Ke6 {[%emt 0:00:06]} 71. Kf4 {[%emt 0:00:34]} Nd6 {[%emt 0:00:16]} 72. Ng5+ {[%emt 0:00:08]} Ke7 {[%emt 0:00:06]} 73. Ne4 {[%emt 0:00:08]} Nf7 {[%emt 0:00:10]} 74. Ng3 {[%emt 0:01:04]} Ke6 {[%emt 0:00:08]} 75. Nf5 {[%emt 0:00:24]} Kf6 {[%emt 0:00:03]} 76. Nd6 {[%emt 0:00:16]} Nd8 {[%emt 0:00:15]} 77. Ne4+ {[%emt 0:00:23]} Ke7 {[%emt 0:00:04]} 78. Kf5 {[%emt 0:00:28]} Nf7 {[%emt 0:00:11]} 79. Rh2 {[%emt 0:00:14]} Nd8 {[%emt 0:00:25]} 80. Rh7+ {[%emt 0:00:04]} Kf8 {[%emt 0:00:05]} 81. Kf6 {[%emt 0:00:14]} 1-0

[Event "1000GM Spring GM-A 2024"]
[Site "New York"]
[Date "2024.03.30"]
[Round "6.2"]
[White "Zilka, Stepan"]
[Black "Novik, Maxim"]
[Result "1-0"]
[ECO "B10"]
[WhiteElo "2589"]
[BlackElo "2415"]
[Annotator "TA"]
[PlyCount "85"]
[EventDate "2024.03.26"]
[EventType "tourn"]
[EventCountry "USA"]
[SourceTitle "playchess.com"]
[Source "ChessBase"]
[SourceQuality "1"]
[TimeControl "5400+30"]

{[%evp 9,85,50,45,52,48,47,46,33,35,51,58,47,48,41,64,73,73,78,80,55,82,83,89,77,70,73,124,121,118,81,106,105,123,101,172,169,236,238,328,319,399,401,392,377,414,414,413,406,415,412,577,256,265,258,322,322,349,355,353,353,373,379,385,382,458,448,453,450,450,462,439,463,452,457,531,536,520,519]} 1. e4 {[%emt 0:00:06]} c6 {[%emt 0:00:02]} 2. Nf3 {[%emt 0:00:05]} d5 {[%emt 0:00:04]} 3. d3 {[%emt 0:00:04]} Nd7 {[%emt 0:02:48]} 4. e5 {[%emt 0:00:33]} Nb6 {[%emt 0:06:34]} 5. d4 {[%emt 0:01:44]} Bg4 {[%emt 1:23:32]} 6. h3 {[%emt 0:00:20]} Bxf3 {[%emt 0:00:00]} 7. Qxf3 {[%emt 0:00:08]} e6 {[%emt 0:00:00]} 8. Bd3 {[%emt 0:00:32] Weiß steht etwas besser.} c5 {[%emt 0:00:00]} 9. c3 {[%emt 0:00:22]} Ne7 {[%emt 0:00:00]} 10. O-O {[%emt 0:02:29]} Nc6 {[%emt 0:00:00]} 11. Be3 {[%emt 0:00:08]} Be7 {[%emt 0:00:00]} 12. Nd2 {[%emt 0:02:37]} (12. dxc5 Nd7 $11) 12... cxd4 {[%emt 0:00:00]} 13. cxd4 {[%emt 0:00:07]} O-O {[%emt 0:00:00]} 14. Rac1 {[%emt 0:03:53]} Rc8 {[%emt 0:00:00]} 15. Qg4 {[%emt 0:00:07]} g6 {[%emt 0:00:00]} 16. Bh6 {[%emt 0:02:48]} Re8 {[%emt 0:00:00]} 17. Nf3 $36 {[%emt 0:02:58][%mdl 2048] Schwarz steht unter starkem Druck. Weiß steht deutlich aktiver.} Nd7 {[%emt 0:00:00]} (17... Bf8 $142 18. Bg5 Be7) 18. h4 $16 {[%emt 0:01:53][%cal Bh3h4,Bh4h5][%mdl 32]} Bf8 {[%emt 0:00:00]} 19. Bxf8 {[%emt 0:02:33]} Nxf8 {[%emt 0:00:00]} 20. h5 {[%emt 0:00:54]} Qb6 {[%emt 0:00:00]} 21. Qf4 {[%emt 0:01:38]} Qd8 {[%emt 0:00:00]} (21... Qc7 $16 22. a3 f5) 22. Rc3 $18 {[%emt 0:05:50]} Qe7 {[%emt 0:00:00]} (22... Qc7 $142 23. Bb5 f5 24. Bxc6 bxc6) 23. Rfc1 {[%emt 0:01:00]} Rc7 {[%emt 0:00:00] [#]} 24. Nh2 $1 {[%emt 0:02:08][%cal Bf3h2,Bh2g4,Bg4f6][%mdl 32]} gxh5 {[%emt 0:00:00]} 25. Qh6 {[%emt 0:03:52][%cal Od3h7] Zielt auf Bxh7+! ab.} Ng6 {[%emt 0:00:00]} 26. Qxh5 {[%emt 0:00:10]} f5 {[%emt 0:00:00] Pariert Ng4.} 27. exf6 {[%emt 0:00:12]} Qxf6 {[%emt 0:00:00]} 28. Ng4 {[%emt 0:00:35]} Qg7 {[%emt 0:00:00]} 29. Bxg6 {[%emt 0:02:14]} ({Keinesfalls} 29. Ne5 Rf8 30. Bxg6 hxg6 31. Nxg6 Rf5 $18) 29... Qxg6 {[%emt 0:00:00]} (29... hxg6 $142 30. Qg5 Kf8 31. Qf4+ Rf7 32. Qd6+ Ree7) 30. Qxg6+ {[%emt 0:01:58]} (30. Nf6+ $142 Kf7 31. Qh4 (31. Qxh7+ $2 {verliert.} Qxh7 32. Nxh7 Kg6 $19) (31. Qxg6+ hxg6 32. Rf3 Ke7 $18) 31... Qxf6 32. Qxh7+ (32. Rf3 Qxf3 33. gxf3 Rg8+ 34. Kh1 Ke8 $18) 32... Kf8 33. Qxc7) 30... hxg6 {[%emt 0:00:00]} 31. Nf6+ {[%emt 0:00:09]} Kf7 {[%emt 0:00:00]} 32. Rf3 {[%emt 0:02:27]} Ke7 {[%emt 0:00:00]} 33. Nxe8 {[%emt 0:00:14]} Kxe8 {[%emt 0:00:00][%mdl 4096] Endspiel. KRR-KRN} 34. Rf6 {[%emt 0:01:04][%csl LRe6,LRg6]} Re7 {[%emt 0:00:00]} 35. Rd1 {[%emt 0:00:33]} g5 {[%emt 0:00:00]} 36. Rg6 {[%emt 0:04:24]} e5 {[%emt 0:00:00]} 37. dxe5 {[%emt 0:00:07] Weiß steht klar auf Gewinn.} Rxe5 {[%emt 0:00:00]} 38. Rg7 {[%emt 0:00:09]} Ne7 {[%emt 0:00:00]} 39. Kf1 {[%emt 0:00:23]} Kf8 {[%emt 0:00:00]} 40. Rh7 {[%emt 0:00:11]} Kg8 {[%emt 0:00:00]} 41. Rh3 {[%emt 0:00:17]} Nc6 {[%emt 0:00:00]} 42. Rb3 {[%emt 0:01:27]} b6 {[%emt 0:00:00]} 43. Rc3 {[%emt 0:00:28] Gewichteter Fehlerwert: Weiß=0.16 (sehr präzise) /Schwarz=0.30.  Fehler:       	Weiß=1     	Schwarz=4     Ungenau:       	Weiß=1     	Schwarz=2     OK:         	Weiß=23    	Schwarz=12    Bester:       	Weiß=2     	Schwarz=1     Stark:        	Weiß=1     	---} 1-0

[Event "1000GM Spring GM-A 2024"]
[Site "New York"]
[Date "2024.03.30"]
[Round "6.3"]
[White "Ostrovskiy, Aleksandr"]
[Black "Lu, Maximillian"]
[Result "1/2-1/2"]
[ECO "B90"]
[WhiteElo "2411"]
[BlackElo "2375"]
[Annotator "RC"]
[PlyCount "132"]
[EventDate "2024.03.26"]
[EventType "tourn"]
[EventCountry "USA"]
[SourceTitle "playchess.com"]
[Source "ChessBase"]
[SourceQuality "1"]
[TimeControl "5400+30"]

1. e4 {[%emt 0:13:50]} c5 {[%emt 0:00:52]} 2. Nf3 {[%emt 0:00:17]} d6 {[%emt 0:00:02]} 3. d4 {[%emt 0:00:29]} cxd4 {[%emt 0:00:08]} 4. Nxd4 {[%emt 0:00:04]} Nf6 {[%emt 0:00:13]} 5. Nc3 {[%emt 0:00:09]} a6 {[%emt 0:00:13]} 6. Be3 {[%emt 0:02:04]} e5 {[%emt 0:00:11]} 7. Nf3 {[%emt 0:00:47]} Be7 {[%emt 0:01:19]} 8. Nd2 {[%emt 0:02:58]} Qc7 {[%emt 0:15:05]} 9. Nc4 {[%emt 0:03:50]} Nbd7 {[%emt 0:03:11]} 10. a4 {[%emt 0:00:57]} b6 {[%emt 0:05:49]} 11. Be2 {[%emt 0:14:45]} O-O {[%emt 0:03:16]} 12. O-O {[%emt 0:01:38]} Rb8 {[%emt 0:05:26]} 13. Bg5 {[%emt 0:08:17]} h6 {[%emt 0:05:36]} 14. Bxf6 {[%emt 0:00:40]} Nxf6 {[%emt 0:00:02]} 15. Ne3 {[%emt 0:00:24]} Bb7 {[%emt 0:00:32]} 16. Qd3 {[%emt 0:29:47]} Rfc8 {[%emt 0:05:30]} 17. Rfd1 {[%emt 0:03:12]} Qc5 {[%emt 0:03:00]} 18. Nf5 {[%emt 0:04:52]} Bf8 {[%emt 0:02:57]} 19. Nxd6 {[%emt 0:00:59]} Bxd6 {[%emt 0:03:10]} 20. Qxd6 {[%emt 0:00:15]} Nxe4 {[%emt 0:00:45]} 21. Nxe4 {[%emt 0:02:57]} Bxe4 {[%emt 0:00:02]} 22. Qxc5 {[%emt 0:00:48]} Rxc5 {[%emt 0:00:49]} 23. c3 {[%emt 0:00:08]} a5 {[%emt 0:03:24]} 24. Bb5 {[%emt 0:01:10]} Bf5 {[%emt 0:02:01]} 25. Rd6 {[%emt 0:01:48]} Kf8 {[%emt 0:03:18]} 26. Rad1 {[%emt 0:00:44]} Ke7 {[%emt 0:06:22]} 27. Kf1 {[%emt 0:00:33]} Be6 {[%emt 0:00:58]} 28. Ke2 {[%emt 0:01:33]} Rb7 {[%emt 0:01:13]} 29. Ke3 {[%emt 0:01:55]} f5 {[%emt 0:07:12]} 30. Rd8 {[%emt 0:02:29]} Rc8 {[%emt 0:04:06]} 31. Rxc8 {[%emt 0:00:37]} Bxc8 {[%emt 0:00:01]} 32. Rd5 {[%emt 0:00:54]} Ke6 {[%emt 0:06:18]} 33. Bc4 {[%emt 0:00:30]} Rc7 {[%emt 0:00:01]} 34. Rc5+ {[%emt 0:00:37]} Kd6 {[%emt 0:00:01]} 35. Rd5+ {[%emt 0:00:01]} Ke7 {[%emt 0:10:50]} 36. Bb5 {[%emt 0:00:25]} Rc5 {[%emt 0:02:28]} 37. Rd2 {[%emt 0:00:50]} Be6 {[%emt 0:00:17]} 38. g3 {[%emt 0:00:33]} g5 {[%emt 0:01:13]} 39. f4 {[%emt 0:00:28]} exf4+ {[%emt 0:00:16]} 40. gxf4 {[%emt 0:00:02]} Rc8 {[%emt 0:01:06]} 41. Rd4 {[%emt 0:00:36]} g4 {[%emt 0:00:55]} 42. Bd3 {[%emt 0:00:52]} h5 {[%emt 0:00:16]} 43. Kf2 {[%emt 0:00:42]} h4 {[%emt 0:00:01]} 44. Bc2 {[%emt 0:00:28]} Rc6 {[%emt 0:00:24]} 45. Rd2 {[%emt 0:00:18]} Rc4 {[%emt 0:00:56]} 46. Ke3 {[%emt 0:00:18]} Rc8 {[%emt 0:00:14]} 47. Kf2 {[%emt 0:00:08]} Rc5 {[%emt 0:01:06]} 48. Re2 {[%emt 0:01:16]} Kf6 {[%emt 0:00:33]} 49. Rd2 {[%emt 0:00:04]} Ke7 {[%emt 0:00:01]} 50. Re2 {[%emt 0:00:01]} Kf6 {[%emt 0:01:14]} 51. Rd2 {[%emt 0:00:01]} Bd5 {[%emt 0:00:24]} 52. Re2 {[%emt 0:01:06]} Rc4 {[%emt 0:00:21]} 53. Ke3 {[%emt 0:00:40]} g3 {[%emt 0:00:46]} 54. hxg3 {[%emt 0:00:14]} hxg3 {[%emt 0:00:00]} 55. Rd2 {[%emt 0:01:23]} g2 {[%emt 0:01:01]} 56. Rd1 {[%emt 0:00:00]} Bb7 {[%emt 0:00:31]} 57. Rd6+ {[%emt 0:00:32]} Kg7 {[%emt 0:00:27]} 58. Rd1 {[%emt 0:00:40]} Kg6 {[%emt 0:00:16]} 59. Rg1 {[%emt 0:00:51]} Kf6 {[%emt 0:00:44]} 60. Rd1 {[%emt 0:00:29]} Kg6 {[%emt 0:00:02]} 61. Rg1 {[%emt 0:00:02]} Bc6 {[%emt 0:01:02]} 62. Rd1 {[%emt 0:00:31]} Ba8 {[%emt 0:00:29]} 63. Rg1 {[%emt 0:00:15]} Bb7 {[%emt 0:00:07]} 64. Rd1 {[%emt 0:00:39]} Kf6 {[%emt 0:00:48]} 65. Rd6+ {[%emt 0:00:27]} Kf7 {[%emt 0:00:28]} 66. Rd1 {[%emt 0:00:14]} Kg6 {[%emt 0:00:22]} 1/2-1/2

[Event "1000GM Spring GM-A 2024"]
[Site "New York"]
[Date "2024.03.30"]
[Round "6.4"]
[White "Lomasov, Semyon"]
[Black "Huston, Gus"]
[Result "1-0"]
[ECO "B62"]
[WhiteElo "2565"]
[BlackElo "2401"]
[Annotator "TA"]
[PlyCount "67"]
[EventDate "2024.03.26"]
[EventType "tourn"]
[EventCountry "USA"]
[SourceTitle "playchess.com"]
[Source "ChessBase"]
[SourceQuality "1"]
[TimeControl "5400+30"]

{[%evp 12,67,39,19,48,47,41,27,22,0,8,4,0,0,0,0,0,-17,-3,-17,0,0,0,-52,-16,-28,-14,-25,61,0,23,31,78,0,116,121,108,110,101,108,112,123,100,95,97,118,260,260,665,642,1375,1320,29991,29992,29992,29993,29993,29994]} 1. e4 {[%emt 0:05:43]} c5 {[%emt 0:00:18]} 2. Nf3 {[%emt 0:00:20]} d6 {[%emt 0:00:05]} 3. d4 {[%emt 0:00:09]} cxd4 {[%emt 0:00:04]} 4. Nxd4 {[%emt 0:00:05]} Nf6 {[%emt 0:00:05]} 5. Nc3 {[%emt 0:00:04]} Nc6 {[%emt 0:00:02]} 6. Bg5 {[%emt 0:01:23]} e6 {[%emt 0:00:03]} 7. Qd3 {[%emt 0:01:17]} Bd7 {[%emt 0:00:06]} 8. O-O-O {[%emt 0:01:31]} a6 {[%emt 0:00:14] Lässt Ndb5 nicht zu} 9. Nxc6 {[%emt 0:02:35]} Bxc6 {[%emt 0:00:22] Weiß hat minimalen Vorteil.} 10. Qh3 {[%emt 0:00:23]} h6 {[%emt 0:02:00][%cal Oh8g8]} 11. f3 {[%emt 0:09:15]} Be7 {[%emt 0:10:10]} 12. Be3 {[%emt 0:03:53]} Qc7 {[%emt 0:17:08]} 13. Qg3 {[%emt 0:13:46]} g6 {[%emt 0:05:00]} 14. Kb1 {[%emt 0:00:34]} b5 {[%emt 0:00:31][%cal Bb7b5,Bb5b4][%mdl 32]} 15. Bd3 {[%emt 0:04:14]} b4 {[%emt 0:03:21]} 16. Ne2 {[%emt 0:00:24]} e5 {[%emt 0:00:01] Verhindert Nd4} 17. c4 {[%emt 0:04:12]} (17. h4 $11) 17... Rb8 {[%emt 0:05:18]} 18. h4 {[%emt 0:08:51][%cal Oh4h5]} h5 {[%emt 0:00:55]} 19. Bg5 {[%emt 0:01:39]} Qb6 {[%emt 0:09:13]} ({Besser ist} 19... a5 $11) 20. Rhe1 {[%emt 0:14:19]} (20. Bc2 $1 $14 Qc7 21. Rd3) 20... a5 {[%emt 0:01:36]} 21. Nd4 {[%emt 0:05:16]} Ba4 {[%emt 0:12:10]} (21... Qxd4 $2 {geht unter.} 22. Be3 $18) (21... exd4 $2 22. e5 Kd7 23. exf6 $18) (21... b3 $14 22. Nxb3 Nd7 23. Bxe7 Kxe7) 22. b3 $16 {[%emt 0:11:40] c5 wäre nun fies.} Nd7 {[%emt 0:13:42]} (22... Qxd4 $11 {bleibt in der Remisbreite.} 23. Be3 Qc3) 23. Nb5 {[%emt 0:00:13]} Bxb5 {[%emt 0:00:51]} 24. cxb5 {[%emt 0:00:07]} Bxg5 {[%emt 0:02:56]} 25. Qxg5 {[%emt 0:00:02]} Qd8 {[%emt 0:00:16]} 26. Qe3 {[%emt 0:01:18] Weiß steht aktiver.} Qxh4 {[%emt 0:02:26] [#]} 27. Bc4 $1 {[%emt 0:03:05]} Rb6 {[%emt 0:09:07] [#]} 28. Bd5 $1 {[%emt 0:00:49] Und jetzt Bc6 wäre schön.} Ke7 {[%emt 0:03:52] Das Aus für Schwarz.} (28... Qf4 $16 {war angesagt.}) 29. Bc6 $18 {[%emt 0:03:48] Zielt auf Bxd7 ab.} Rbb8 $2 {[%emt 0:00:01]} (29... Rhb8 30. g3 Qf6 (30... Qxg3 $2 {verliert.} 31. Qd3 $18)) 30. Bxd7 {[%emt 0:01:55]} Kxd7 {[%emt 0:00:01][%cal Be7d7,Bd7e6,Be6d6][%mdl 32]} 31. Qa7+ {[%emt 0:00:23]} Ke6 {[%emt 0:00:09] [#]} 32. Rxd6+ $3 {[%emt 0:00:10][%mdl 512] Weiß setzt Matt.} Kxd6 {[%emt 0:00:01]} 33. Rd1+ {[%emt 0:00:10]} Ke6 {[%emt 0:00:03]} 34. Qa6+ {[%emt 0:00:11] Gewichteter Fehlerwert: Weiß=0.08 (makellos) /Schwarz=0.71.  Fehler:       	Weiß=2     	Schwarz=5     Ungenau:       	---       	Schwarz=2     OK:         	Weiß=12    	Schwarz=10    Bester:       	Weiß=1     	---        Stark:        	Weiß=2     	---} (34. Qxa5 $2 {zu gefräßig.} Rhd8 35. Rc1 Kf6 36. Qxb4 Qf2 $19) 1-0

[Event "1000GM Spring GM-A 2024"]
[Site "New York"]
[Date "2024.03.30"]
[Round "6.5"]
[White "Mardov, Dimitar"]
[Black "Bortnyk, Mykola"]
[Result "1/2-1/2"]
[ECO "E11"]
[WhiteElo "2473"]
[BlackElo "2453"]
[Annotator "TA"]
[PlyCount "60"]
[EventDate "2024.03.26"]
[EventType "tourn"]
[EventCountry "USA"]
[SourceTitle "playchess.com"]
[Source "ChessBase"]
[SourceQuality "1"]
[TimeControl "5400+30"]

{[%evp 11,58,16,15,21,26,19,16,0,28,34,23,31,35,31,33,20,16,13,16,20,14,22,21,23,10,12,16,22,15,12,41,14,16,13,36,16,21,25,43,52,77,84,46,52,95,87,77,30,31]} 1. d4 {[%emt 0:00:01]} Nf6 {[%emt 0:15:22]} 2. Nf3 {[%emt 0:00:26]} e6 {[%emt 0:00:10]} 3. c4 {[%emt 0:00:03]} Bb4+ {[%emt 0:00:05]} 4. Nbd2 {[%emt 0:00:35]} b6 {[%emt 0:05:43]} 5. a3 {[%emt 0:01:11]} Bxd2+ {[%emt 0:00:06]} 6. Bxd2 {[%emt 0:01:57]} Bb7 {[%emt 0:00:07]} 7. e3 {[%emt 0:00:24]} d6 {[%emt 0:00:33]} 8. Bd3 {[%emt 0:09:02]} Nbd7 {[%emt 0:02:22]} 9. Bc3 {[%emt 0:10:39] The position is equal.} Qe7 {[%emt 0:02:54]} 10. O-O {[%emt 0:02:36]} Ne4 {[%emt 0:04:19]} 11. Be1 {[%emt 0:04:51]} O-O {[%emt 0:04:33]} 12. Nd2 {[%emt 0:04:08]} f5 {[%emt 0:00:33]} 13. f3 {[%emt 0:03:18]} Nxd2 {[%emt 0:00:36]} 14. Bxd2 {[%emt 0:03:38]} e5 {[%emt 0:02:42]} 15. d5 {[%emt 0:06:31]} e4 {[%emt 0:08:31]} 16. fxe4 {[%emt 0:12:30]} Nc5 {[%emt 0:01:05]} 17. Bc3 {[%emt 0:03:02]} Nxd3 {[%emt 0:02:51]} 18. Qxd3 {[%emt 0:00:05]} Qxe4 {[%emt 0:00:06]} 19. Qxe4 {[%emt 0:03:10]} fxe4 {[%emt 0:00:05] Black is weak on the dark squares} 20. a4 {[%emt 0:01:18][%cal Ba3a4,Ba4a5][%mdl 32]} a6 {[%emt 0:00:25]} 21. Rxf8+ {[%emt 0:01:47]} Rxf8 $14 {[%emt 0:00:04][%mdl 4096] Endgame. KRB-KRB} 22. b4 {[%emt 0:03:40]} Bc8 {[%emt 0:01:28]} 23. h3 {[%emt 0:03:05]} Bd7 {[%emt 0:02:04]} 24. Bd4 {[%emt 0:00:26]} g5 {[%emt 0:01:09]} 25. a5 {[%emt 0:04:08]} b5 {[%emt 0:00:06]} 26. c5 {[%emt 0:20:59]} dxc5 {[%emt 0:02:21]} 27. Bxc5 {[%emt 0:00:00]} ({Much worse is} 27. bxc5 Rf5 $11) 27... Rf5 {[%emt 0:00:07]} 28. Rd1 {[%emt 0:00:00]} Kf7 {[%emt 0:01:21]} 29. d6 {[%emt 0:00:00]} ({White should play} 29. Ba7 $16) 29... c6 $11 {[%emt 0:00:05]} 30. Rf1 {[%emt 0:00:00]} Rxf1+ {[%emt 0:00:20] Weighted Error Value: White=0.05 (flawless) /Black=0.07 (flawless) .  Mistake:       	White=1     	---        Inaccurate:     	White=1     	Black=3      OK:         	White=8     	Black=10     Best:        	White=1     	Black=2} 1/2-1/2